fUSD/lending_fUSD_20251014
["ID","MTS","AMOUNT","RATE_DAILY","PERIOD"]
[391205615,1760417504990,-531.26,0.00027397,7]
[391205616,1760417505000,-542.77214019,0.00027397,7]
[391205617,1760417505010,-531.26,0.00027397,7]
[391205618,1760417505019,-619.73,0.00027397,7]
[391205619,1760417505028,-531.26,0.00027397,7]
[391205620,1760417505037,-619.73,0.00027397,7]
[391205621,1760417505046,-531.49554741,0.00027397,7]
[391205622,1760417505056,-619.73,0.00027397,7]
[391205623,1760417505066,-619.73,0.00027397,7]
[391205624,1760417505075,-500.0,0.00027397,7]
[391205625,1760417505084,-535.37,0.00027397,7]
[391205626,1760417505093,-500.0,0.00027397,7]
[391205627,1760417505104,-619.73,0.00027397,7]
[391205628,1760417505119,-535.37,0.00027397,7]
[391205629,1760417505128,-500.0,0.00027397,7]
[391205630,1760417505138,-619.73,0.00027397,7]
[391205631,1760417505147,-500.0,0.00027397,7]
[391205632,1760417505156,-535.37,0.00027397,7]
[391205633,1760417505172,-500.0,0.00027397,7]
[391205634,1760417505181,-500.0,0.00027397,7]
[391205635,1760417505190,-619.73,0.00027397,7]
[391205636,1760417505199,-535.37,0.00027397,7]
[391205637,1760417505209,-500.0,0.00027397,7]
[391205638,1760417505222,-619.73,0.00027397,7]
[391205639,1760417505231,-500.0,0.00027397,7]
[391205640,1760417505241,-535.37,0.00027397,7]
[391205641,1760417505251,-500.0,0.00027397,7]
[391205642,1760417505261,-500.0,0.00027397,7]
[391205643,1760417505272,-619.73,0.00027397,7]
[391205644,1760417505283,-535.37,0.00027397,7]
[391205645,1760417505295,-619.73,0.00027397,7]
[391205646,1760417505306,-248.23535058,0.00027397,7]
[391205647,1760417505318,-535.37,0.00027397,7]
[391205648,1760417505330,-619.73,0.00027397,7]
[391205649,1760417505345,-500.0,0.00027397,7]
[391205650,1760417505359,-535.37,0.00027397,7]
[391205651,1760417505372,-619.73,0.00027397,7]
[391205652,1760417505384,-500.0,0.00027397,7]
[391205653,1760417505396,-535.37,0.00027397,7]
[391205654,1760417505409,-500.0,0.00027397,7]
[391205655,1760417505432,-619.73,0.00027397,7]
[391205656,1760417505444,-535.37,0.00027397,7]
[391205657,1760417505455,-500.0,0.00027397,7]
[391205658,1760417505465,-619.73,0.00027397,7]
[391205659,1760417505480,-535.37,0.00027397,7]
[391205660,1760417505491,-500.0,0.00027397,7]
[391205661,1760417505502,-535.37,0.00027397,7]
[391205662,1760417505513,-619.73,0.00027397,7]
[391205663,1760417505526,-500.0,0.00027397,7]
[391205664,1760417505537,-535.37,0.00027397,7]
[391205665,1760417505548,-619.73,0.00027397,7]
[391205666,1760417505561,-500.0,0.00027397,7]
[391205667,1760417505573,-535.37,0.00027397,7]
[391205668,1760417505585,-500.0,0.00027397,7]
[391205669,1760417505596,-619.73,0.00027397,7]
[391205670,1760417505608,-500.0,0.00027397,7]
[391205671,1760417505620,-535.37,0.00027397,7]
[391205672,1760417505635,-500.0,0.00027397,7]
[391205673,1760417505647,-500.0,0.00027397,7]
[391205674,1760417505658,-619.73,0.00027397,7]
[391205675,1760417505684,-535.37,0.00027397,7]
[391205676,1760417505696,-500.0,0.00027397,7]
[391205677,1760417505716,-500.0,0.00027397,7]
[391205678,1760417505731,-619.73,0.00027397,7]
[391205679,1760417505742,-500.0,0.00027397,7]
[391205680,1760417505756,-535.37,0.00027397,7]
[391205681,1760417505767,-500.0,0.00027397,7]
[391205682,1760417505779,-500.0,0.00027397,7]
[391205683,1760417505790,-619.73,0.00027397,7]
[391205684,1760417505802,-500.0,0.00027397,7]
[391205685,1760417505814,-535.37,0.00027397,7]
[391205686,1760417505826,-500.0,0.00027397,7]
[391205687,1760417505838,-500.0,0.00027397,7]
[391205688,1760417505849,-619.73,0.00027397,7]
[391205689,1760417505860,-500.0,0.00027397,7]
[391205690,1760417505871,-500.0,0.00027397,7]
[391205691,1760417505883,-535.37,0.00027397,7]
[391205692,1760417505894,-500.0,0.00027397,7]
[391205693,1760417505905,-500.0,0.00027397,7]
[391205694,1760417505924,-500.0,0.00027397,7]
[391205695,1760417505935,-500.0,0.00027397,7]
[391205696,1760417505948,-535.37,0.00027397,7]
[391205697,1760417505960,-619.8931233,0.00027397,7]
[391205698,1760417505972,-500.0,0.00027397,7]
[391205699,1760417505983,-500.0,0.00027397,7]
[391205700,1760417505994,-500.0,0.00027397,7]
[391205701,1760417506004,-500.0,0.00027397,7]
[391205702,1760417506014,-500.0,0.00027397,7]
[391205703,1760417506025,-500.0,0.00027397,7]
[391205704,1760417506035,-500.0,0.00027397,7]
[391205705,1760417506043,-535.37,0.00027397,7]
[391205706,1760417506053,-500.0,0.00027397,7]
[391205707,1760417506063,-179.04131868,0.00027397,7]
[391205708,1760417506403,-320.95868132,0.00027397,7]
[391205709,1760417506413,-500.0,0.00027397,7]
[391205710,1760417506429,-486.27616402,0.00027397,7]
[391205711,1760417506443,-13.72383598,0.00027397,7]
[391205712,1760417506453,-500.0,0.00027397,7]
[391205713,1760417506462,-500.0,0.00027397,7]
[391205714,1760417506471,-535.37,0.00027397,7]
[391205715,1760417506481,-500.0,0.00027397,7]
[391205716,1760417506490,-500.0,0.00027397,7]
[391205717,1760417506499,-500.0,0.00027397,7]
[391205718,1760417506508,-500.0,0.00027397,7]
[391205719,1760417506518,-500.0,0.00027397,7]
[391205720,1760417506527,-535.37,0.00027397,7]
[391205721,1760417506537,-500.0,0.00027397,7]
[391205722,1760417506549,-500.0,0.00027397,7]
[391205723,1760417506559,-163.54621633,0.00027397,7]
[391205724,1760417506568,-500.0,0.00027397,7]
[391205725,1760417506578,-500.0,0.00027397,7]
[391205726,1760417506587,-535.42101814,0.00027397,7]
[391205727,1760417506597,-500.0,0.00027397,7]
[391205728,1760417506607,-451.09974783,0.00027397,7]
[391205729,1760417506616,-3.46918172,0.00027397,7]
[391205880,1760417719094,261.24,0.00013699,2]
[391205884,1760417742514,304.199,0.000171,2]
[391206196,1760418058439,211.8735283,0.000171,2]
[391206230,1760418632254,-1200.0,0.00019999,2]
[391206231,1760418632265,-6957.33337667,0.0002,2]
[391206232,1760418632276,-10185.66662333,0.0002,2]
[391206233,1760418632286,-245.76406225,0.0002,2]
[391206234,1760418632297,-150.0,0.00020187,2]
[391206235,1760418632307,-261.24,0.00020187,2]
[391206236,1760418632316,-368.64609339,0.00021036,2]
[391206237,1760418632326,-250.0,0.00021999,2]
[391206238,1760418632335,-307.20507782,0.00022073,2]
[391206239,1760418632345,-204.80338522,0.00023109,2]
[391206240,1760418632354,-225.28372374,0.00024145,2]
[391206241,1760418632364,-273.83161121,0.00024912,2]
[391206242,1760418633084,-27.40838879,0.00024912,2]
[391206243,1760418633094,-500.0,0.00024932,2]
[391206244,1760418633103,-303.41,0.00024932,2]
[391206245,1760418633112,-304.11,0.00024934,2]
[391206246,1760418633121,-305.9,0.00024954,2]
[391206247,1760418633130,-3435.35377782,0.00024976,2]
[391206248,1760418633139,-1305.21,0.00025006,2]
[391206249,1760418633149,-1285.01,0.00025006,2]
[391206250,1760418633158,-517.9,0.00025061,2]
[391206251,1760418633167,-322.6107,0.00025093,2]
[391206252,1760418633177,-391.35134769,0.00025093,2]
[391206253,1760418633186,-1324.97,0.00025108,2]
[391206254,1760418633195,-1288.57,0.00025108,2]
[391206255,1760418633204,-1312.03,0.00025108,2]
[391206256,1760418633213,-183.0,0.0002515,120]
[391206257,1760418633223,-184.0,0.0002515,120]
[391206258,1760418633232,-245.76406226,0.00025182,2]
[391206259,1760418633241,-528.26,0.00025184,2]
[391206260,1760418633250,-150.82,0.00025184,2]
[391206261,1760418633259,-520.78,0.00025184,2]
[391206262,1760418633268,-527.82,0.00025194,2]
[391206263,1760418633277,-1326.28,0.00025248,2]
[391206264,1760418633286,-1302.25,0.00025248,2]
[391206265,1760418633295,-5000.0,0.0002528,2]
[391206266,1760418633304,-543.39,0.0002528,120]
[391206267,1760418633314,-158.75,0.00025476,2]
[391206268,1760418633323,-1832.76,0.00025483,2]
[391206269,1760418633332,-1549.68,0.00025487,2]
[391206270,1760418633342,-250.0,0.00025499,7]
[391206271,1760418633352,-371.23,0.00025532,2]
[391206272,1760418633361,-619.0,0.00025744,2]
[391206273,1760418633371,-1193.215,0.00025878,11]
[391206274,1760418633380,-168.0,0.00025878,2]
[391206275,1760418633390,-151.87250626,0.00025935,2]
[391206276,1760418633400,-617.0,0.00026054,2]
[391206277,1760418633410,-168.0,0.00026211,7]
[391206278,1760418633419,-266.24440079,0.00026218,5]
[391206279,1760418633428,-171.85,0.00026339,2]
[391206280,1760418633438,-183.0,0.00026408,120]
[391206281,1760418633448,-184.0,0.00026408,120]
[391206282,1760418633457,-168.0,0.00026408,2]
[391206283,1760418633466,-978.97,0.00026433,120]
[391206284,1760418633476,-392.70520777,0.00026462,2]
[391206285,1760418633485,-151.14,0.00026575,2]
[391206286,1760418633495,-150.0,0.00026575,2]
[391206287,1760418633509,-150.0,0.00026575,2]
[391206288,1760418633519,-150.0,0.00026575,2]
[391206289,1760418633528,-261.24,0.00026676,2]
[391206290,1760418633538,-288.0,0.00026722,2]
[391206291,1760418633549,-599.55262,0.00026849,7]
[391206292,1760418633561,-6572.44738,0.00026849,7]
[391206293,1760418633570,-1316.873,0.00026894,2]
[391206294,1760418633579,-572.604,0.00026894,2]
[391206295,1760418633589,-605.599,0.00026894,2]
[391206296,1760418633599,-818.0,0.00026894,2]
[391206297,1760418633608,-556.0,0.00026894,2]
[391206298,1760418633617,-6442.0,0.00026894,2]
[391206299,1760418633627,-4014.0,0.00026894,2]
[391206300,1760418633636,-290.0,0.00027017,2]
[391206301,1760418633646,-83780.34322316,0.00027039,2]
[391206302,1760418633655,-290.0,0.00027044,7]
[391206303,1760418633665,-183.39347746,0.00027048,2]
[391206304,1760418633674,-3874.69727948,0.00027056,2]
[391206305,1760418633684,-11171.83998123,0.0002706,2]
[391206306,1760418633693,-9103.33394919,0.00027069,2]
[391206307,1760418633702,-183.39347746,0.00027069,2]
[391206308,1760418633711,-21652.66861474,0.00027071,2]
[391206309,1760418633721,-5090.16815158,0.00027071,2]
[391206310,1760418633730,-2402.85587461,0.00027079,2]
[391206311,1760418634209,-2168.338,0.00027079,2]
[391206312,1760418634424,-955.64905363,0.00027079,2]
[391206313,1760418634436,-292.469004,0.00027079,2]
[391206314,1760418634449,-534.63709234,0.00027079,2]
[391206320,1760418638119,-283.0828,0.00026894,2]
[391206321,1760418638131,-898.9172,0.00026894,2]
[391206322,1760418638140,-3162.49279913,0.00027079,2]
[391206323,1760418638356,-424.98877521,0.00027079,2]
[391206324,1760418638367,-1822.39263837,0.00027079,2]
[391206325,1760418638378,-1826.9133045,0.00027079,2]
[391206326,1760418638393,-57086.19933989,0.00027079,2]
[391206327,1760418638403,-5090.16815158,0.00027101,2]
[391206329,1760418638413,-5090.16815158,0.00027101,2]
[391206331,1760418638422,-183.39347746,0.00027101,2]
[391206334,1760418638431,-6844.44587948,0.00027111,2]
[391206336,1760418638443,-9232.37980956,0.00027111,2]
[391206360,1760418640138,-5575.8429257,0.00027111,2]
[391206362,1760418640148,-1171.12423744,0.00027118,2]
[391206364,1760418640159,-1473.93976747,0.00027118,2]
[391206365,1760418640170,-1754.0,0.00027118,2]
[391206366,1760418640184,-864.24787903,0.00027118,2]
[391206367,1760418640203,-544.2039824,0.00027118,2]
[391206368,1760418640254,-1116.85709999,0.00027118,2]
[391206369,1760418640458,-4247.4670149,0.00027118,2]
[391206370,1760418640476,-1982.13607957,0.00027123,2]
[391206371,1760418640487,-1386.20851868,0.00027123,2]
[391206376,1760418646251,-152.0,0.00025292,3]
[391206377,1760418646261,-737.24914447,0.00026766,2]
[391206378,1760418646271,-152.0,0.00026766,4]
[391206379,1760418646280,-2545.0,0.00026894,2]
[391206380,1760418646289,-7803.49538298,0.00027123,2]
[391206381,1760418646299,-1000.0,0.00027123,30]
[391206382,1760418646308,-289.1637913,0.00027123,30]
[391206383,1760418646317,-167.8,0.00027123,7]
[391206384,1760418646327,-617.3645136,0.00027129,2]
[391206385,1760418646336,-1425.0,0.00027129,2]
[391206386,1760418646345,-617.3645136,0.0002713,2]
[391206387,1760418646354,-617.3645136,0.00027131,2]
[391206388,1760418646363,-9103.33394919,0.00027133,2]
[391206389,1760418646373,-1425.0,0.00027135,2]
[391206390,1760418646382,-21652.66861474,0.00027137,2]
[391206391,1760418646391,-147957.08344383,0.00027139,2]
[391206392,1760418646401,-9103.33394919,0.00027141,2]
[391206393,1760418646411,-147957.08344383,0.00027143,2]
[391206394,1760418646420,-70676.93588168,0.00027143,2]
[391206395,1760418646430,-150.0,0.00027152,2]
[391206396,1760418646439,-70104.82013709,0.00027168,2]
[391206397,1760418646520,-520.1762601,0.00027168,2]
[391206399,1760418646704,-473.55999987,0.00027168,2]
[391206570,1760419108155,500.0,0.000171,2]
[391206689,1760419508064,18234.62309991,0.00015,2]
[391206728,1760419719236,3368.38661586,0.00012535,2]
[391206729,1760419719798,265.39113678,0.0001,2]
[391206765,1760419832476,-300.0,0.00014842,2]
[391206766,1760419832486,-515.8385678,0.0001486,2]
[391206767,1760419832495,-201.02373801,0.00014899,2]
[391206768,1760419832505,-300.0,0.0001496,2]
[391206769,1760419832514,-185.61,0.0001499,2]
[391206770,1760419832523,-1200.0,0.00014998,2]
[391206771,1760419832532,-300.0,0.00014998,2]
[391206772,1760419832541,-390.05325898,0.00014999,2]
[391206773,1760419832550,-437.64542458,0.00014999,2]
[391206775,1760419832559,-500.0,0.00014999,2]
[391206777,1760419832569,-500.0,0.00014999,2]
[391206779,1760419832579,-500.0,0.00014999,2]
[391206780,1760419832588,-500.0,0.00014999,2]
[391206782,1760419832597,-500.0,0.00014999,2]
[391206784,1760419832607,-332.48067592,0.00014999,2]
[391206786,1760419832616,-150.0,0.00014999,2]
[391206788,1760419832625,-158794.87110851,0.00015,2]
[391206790,1760419832636,-18803.53963785,0.00015,2]
[391206796,1760419838246,-1221.26746359,0.00015,2]
[391206797,1760419838259,-1135.1,0.00015,2]
[391206798,1760419838270,-1381.47159268,0.00015,2]
[391206799,1760419838299,-488.66430191,0.00015,2]
[391206800,1760419838311,-358.33485164,0.00015,2]
[391206801,1760419838361,-6302.49332548,0.00015,2]
[391206802,1760419838424,-10027.20899963,0.00015,2]
[391206803,1760419838485,-385.36424049,0.00015,2]
[391206819,1760419840864,-1320.88129202,0.00014999,2]
[391206820,1760419840875,-30950.20905855,0.00015,2]
[391206821,1760419840884,-201.02373801,0.000161,2]
[391206822,1760419840894,-5000.0,0.000162,5]
[391206823,1760419840904,-300.0,0.00016307,2]
[391206824,1760419840914,-300.0,0.00016415,2]
[391206825,1760419840923,-1781.83847182,0.00017,2]
[391206826,1760419840932,-217.69211307,0.000171,2]
[391206827,1760419840941,-500.0,0.000175,2]
[391206828,1760419840950,-160.51268973,0.000175,2]
[391206829,1760419840960,-501.49056779,0.000175,2]
[391206830,1760419840971,-500.0,0.000175,2]
[391206831,1760419840980,-500.0,0.000175,2]
[391206832,1760419840989,-500.0,0.000175,2]
[391206833,1760419840998,-1781.83847173,0.00018144,2]
[391206834,1760419841008,-3210.05918408,0.00019,2]
[391206835,1760419841017,-1781.83847173,0.00019288,2]
[391206836,1760419841026,-185.61,0.0001994,2]
[391206837,1760419841035,-185.61,0.0001994,2]
[391206838,1760419841044,-185.61,0.0001994,2]
[391206839,1760419841054,-195345.60069556,0.0001995,15]
[391206840,1760419841064,-7310.22,0.00020027,2]
[391206841,1760419841073,-666.0,0.00020131,3]
[391206842,1760419841086,-5040.50271673,0.00020293,2]
[391206843,1760419841095,-160.4330058,0.00020393,2]
[391206844,1760419841105,-1781.83847173,0.00020432,2]
[391206845,1760419841115,-5040.50271666,0.00021071,2]
[391206846,1760419841124,-160.43300579,0.00021544,2]
[391206847,1760419841134,-1781.83847173,0.00021576,2]
[391206848,1760419841143,-5040.50271666,0.00021849,2]
[391206849,1760419841152,-255.55161099,0.00022209,2]
[391206850,1760419841161,-5040.50271666,0.00022628,2]
[391206851,1760419841171,-160.43300579,0.00022694,2]
[391206852,1760419841180,-1781.83847173,0.00022721,2]
[391206853,1760419841189,-817.97764301,0.00023239,2]
[391206854,1760419841198,-5040.50271666,0.00023406,2]
[391206855,1760419841208,-166.66,0.00023677,30]
[391206856,1760419841218,-160.43300579,0.00023845,2]
[391206857,1760419841227,-1781.83847173,0.00023865,2]
[391206858,1760419841236,-475.40571922,0.00023919,2]
[391206859,1760419841246,-166.66,0.00024175,30]
[391206860,1760419841255,-5040.50271666,0.00024184,2]
[391206861,1760419841264,-301.34,0.00024353,2]
[391206862,1760419841274,-304.3,0.00024368,2]
[391206864,1760419841283,-301.89,0.00024368,2]
[391206865,1760419841292,-300.45,0.00024463,2]
[391206866,1760419841302,-300.07,0.00024472,2]
[391206867,1760419841311,-304.13,0.00024481,2]
[391206868,1760419841320,-257.91778498,0.00024541,2]
[391206869,1760419841330,-304.53,0.00024584,2]
[391206870,1760419841341,-302.18,0.00024584,2]
[391206871,1760419841350,-305.53,0.00024584,2]
[391206872,1760419841359,-301.88,0.00024586,2]
[391206873,1760419841369,-150.00000001,0.00024633,2]
[391206874,1760419841378,-166.66,0.00024674,30]
[391206875,1760419841388,-300.34,0.00024708,2]
[391206876,1760419841398,-300.64,0.00024708,2]
[391206877,1760419841407,-304.83,0.00024725,2]
[391206878,1760419841418,-303.2,0.00024725,2]
[391206879,1760419841428,-200.0,0.00024795,2]
[391206880,1760419841438,-151.0,0.00024795,2]
[391206881,1760419841450,-151.0,0.00024795,2]
[391206882,1760419841460,-322.6107,0.00024795,2]
[391206883,1760419841470,-151.0,0.00024795,2]
[391206884,1760419841479,-151.0,0.00024795,2]
[391206885,1760419841489,-151.0,0.00024795,2]
[391206886,1760419841499,-151.0,0.00024795,2]
[391206887,1760419841508,-151.0,0.00024795,2]
[391206888,1760419841519,-151.0,0.00024795,2]
[391206889,1760419841530,-151.0,0.00024795,2]
[391206890,1760419841540,-151.0,0.00024795,2]
[391206891,1760419841554,-151.0,0.00024795,2]
[391206892,1760419841564,-151.0,0.00024795,2]
[391206893,1760419841574,-151.0,0.00024795,2]
[391206894,1760419841584,-151.0,0.00024795,2]
[391206895,1760419841594,-162.88643894,0.00024795,2]
[391206896,1760419841604,-500.0,0.00024795,2]
[391206897,1760419841614,-500.0,0.00024795,2]
[391206898,1760419841623,-500.0,0.00024795,2]
[391206899,1760419841633,-500.0,0.00024795,2]
[391206900,1760419841642,-500.0,0.00024795,2]
[391206901,1760419841652,-500.0,0.00024795,2]
[391206902,1760419841662,-500.0,0.00024795,2]
[391206903,1760419841671,-500.0,0.00024795,2]
[391206904,1760419841680,-250.0,0.00024795,2]
[391206905,1760419841691,-567.24646943,0.00024795,2]
[391206906,1760419841701,-250.0,0.00024795,2]
[391206907,1760419841711,-250.0,0.00024795,2]
[391206908,1760419841725,-250.0,0.00024795,2]
[391206909,1760419841735,-250.0,0.00024795,2]
[391206910,1760419841745,-250.0,0.00024795,2]
[391206911,1760419841755,-250.0,0.00024795,2]
[391206912,1760419841764,-250.0,0.00024795,2]
[391206913,1760419841774,-250.0,0.00024795,2]
[391206914,1760419841784,-250.0,0.00024795,2]
[391206915,1760419841794,-250.0,0.00024795,2]
[391206916,1760419841803,-92259.8341095,0.000248,2]
[391206917,1760419841813,-302.04,0.00024811,2]
[391206918,1760419841825,-300.17,0.00024815,2]
[391206919,1760419841844,-304.79,0.00024832,2]
[391206920,1760419841863,-157.815,0.00024921,8]
[391206921,1760419841873,-1374.374,0.00024921,8]
[391206922,1760419841882,-2134.13,0.00024921,2]
[391206923,1760419841894,-500.0,0.00024932,2]
[391206924,1760419841906,-4193.62882316,0.00024952,2]
[391206925,1760419841917,-5040.50271666,0.00024962,2]
[391206926,1760419841927,-160.43300579,0.00024996,2]
[391206927,1760419841937,-1781.83847173,0.00025009,2]
[391206928,1760419841946,-520.33,0.00025031,2]
[391206929,1760419841956,-4193.62882316,0.00025051,2]
[391206930,1760419841969,-1286.57,0.00025061,2]
[391206931,1760419841979,-1282.79,0.00025061,2]
[391206932,1760419841989,-1321.76,0.00025061,2]
[391206933,1760419841998,-531.23,0.00025125,2]
[391206934,1760419842008,-166.66,0.00025172,30]
[391206935,1760419842017,-200.0,0.000253,2]
[391206936,1760419842027,-525.98,0.0002531,2]
[391206937,1760419842036,-1931.08,0.00025439,2]
[391206938,1760419842046,-4193.62882316,0.00025524,2]
[391206939,1760419842055,-1308.08,0.00025534,2]
[391206940,1760419842064,-1317.71,0.00025534,2]
[391206941,1760419842074,-1312.94,0.00025534,2]
[391206942,1760419842084,-1298.07,0.00025534,2]
[391206943,1760419842094,-1302.9,0.00025536,2]
[391206944,1760419842103,-200.0,0.00025664,2]
[391206945,1760419842113,-166.66,0.00025671,30]
[391206946,1760419842123,-250.0,0.00025727,2]
[391206947,1760419842132,-5040.50271666,0.00025741,2]
[391206948,1760419842142,-173.68,0.00025811,2]
[391206949,1760419842152,-150.32277337,0.00026027,2]
[391206950,1760419842161,-152.21,0.00026029,2]
[391206951,1760419842170,-152.79,0.00026034,2]
[391206952,1760419842179,-515.1,0.00026045,2]
[391206953,1760419842188,-151.0,0.00026055,2]
[391206954,1760419842198,-150.18,0.00026055,2]
[391206955,1760419842207,-168.0,0.00026058,2]
[391206956,1760419842218,-534.3,0.00026072,2]
[391206957,1760419842227,-4193.62882316,0.00026087,2]
[391206958,1760419842237,-646.10960631,0.00026096,2]
[391206959,1760419842247,-165.94340939,0.00026096,2]
[391206960,1760419842256,-220.36950875,0.00026096,2]
[391206961,1760419842265,-1329.12,0.00026097,2]
[391206962,1760419842275,-1306.79,0.00026097,2]
[391206963,1760419842284,-1309.45,0.00026097,2]
[391206964,1760419842293,-1325.98,0.00026097,2]
[391206965,1760419842303,-1286.07,0.00026097,2]
[391206966,1760419842312,-1312.2,0.00026097,2]
[391206967,1760419842322,-4193.62882316,0.00026132,2]
[391206968,1760419842331,-150.32277337,0.00026137,2]
[391206969,1760419842340,-534.27,0.00026138,2]
[391206970,1760419842350,-1329.43,0.00026143,2]
[391206971,1760419842360,-1322.72,0.00026143,2]
[391206972,1760419842370,-160.43300579,0.00026146,2]
[391206973,1760419842380,-1781.83847173,0.00026153,2]
[391206974,1760419842390,-4193.62882316,0.00026159,2]
[391206975,1760419842399,-1305.54,0.00026163,2]
[391206976,1760419842409,-1309.76,0.00026163,2]
[391206977,1760419842419,-1288.04,0.00026163,2]
[391206978,1760419842428,-1300.2,0.00026163,2]
[391206979,1760419842437,-166.66,0.00026169,30]
[391206980,1760419842447,-527.04,0.00026192,2]
[391206981,1760419842456,-150.32277337,0.00026247,2]
[391206982,1760419842467,-150.32277337,0.00026329,2]
[391206983,1760419842476,-1305.28,0.00026347,2]
[391206984,1760419842486,-1320.24,0.00026347,2]
[391206985,1760419842495,-1320.1,0.00026347,2]
[391206986,1760419842506,-1306.18,0.00026347,2]
[391206987,1760419842515,-1322.13,0.00026349,2]
[391206988,1760419842524,-168.0,0.00026434,2]
[391206989,1760419842534,-150.32277337,0.00026438,2]
[391206990,1760419842543,-5040.50271666,0.00026519,2]
[391206991,1760419842552,-150.32277337,0.00026548,2]
[391206992,1760419842562,-1012.0,0.000266,2]
[391206993,1760419842571,-4193.62882316,0.00026654,2]
[391206994,1760419842581,-150.32277337,0.00026658,2]
[391206995,1760419842590,-515.64,0.00026664,2]
[391206996,1760419842599,-532.77,0.00026761,2]
[391206997,1760419842608,-518.07,0.00026764,2]
[391206998,1760419842618,-241.50277341,0.00026766,2]
[391206999,1760419842627,-150.32277337,0.00026767,2]
[391207000,1760419842637,-401.6017,0.000268,2]
[391207001,1760419842647,-153.71,0.00026836,2]
[391207002,1760419842656,-178.0,0.00026849,7]
[391207003,1760419842665,-165.97,0.0002687,2]
[391207004,1760419842674,-150.32277337,0.00026877,2]
[391207005,1760419842683,-16774.5152926,0.0002689,2]
[391207006,1760419842692,-31091.22237847,0.000269,2]
[391207007,1760419842702,-543.57336834,0.000269,2]
[391207008,1760419842711,-1384.54003,0.000269,2]
[391207009,1760419842720,-522.9,0.00026905,2]
[391207010,1760419842730,-150.32277337,0.00026959,2]
[391207011,1760419842739,-8387.25764632,0.0002699,2]
[391207012,1760419842749,-2000.0,0.00027,2]
[391207013,1760419842761,-2000.0,0.00027,2]
[391207014,1760419842770,-2000.0,0.00027,2]
[391207015,1760419842780,-2000.0,0.00027,2]
[391207016,1760419842790,-2000.0,0.00027,2]
[391207017,1760419842800,-2000.0,0.00027,2]
[391207018,1760419842809,-2000.0,0.00027,2]
[391207019,1760419842819,-2000.0,0.00027,2]
[391207020,1760419842831,-677.06,0.00027,2]
[391207021,1760419842841,-1000.0,0.00027,2]
[391207022,1760419842851,-1010.8649,0.00027,2]
[391207023,1760419842860,-1000.0,0.00027,2]
[391207024,1760419842871,-1000.0,0.00027,2]
[391207025,1760419842880,-56653.66713057,0.00027,2]
[391207026,1760419842889,-519.28742079,0.00027038,2]
[391207027,1760419842901,-21499.15648312,0.00027039,2]
[391207028,1760419842912,-150.32277337,0.00027068,2]
[391207029,1760419842922,-155.78622624,0.00027072,2]
[391207030,1760419842931,-200.0,0.0002708,2]
[391207031,1760419842941,-32788.08023809,0.00027092,2]
[391207032,1760419842950,-157206.63846847,0.00027096,2]
[391207034,1760419843166,-3255.48530952,0.00027096,2]
[391207056,1760419844043,-308.55852,0.00014925,2]
[391207057,1760419844053,-136.6161428,0.00027096,2]
[391207058,1760419844073,-5354.799,0.00027096,2]
[391207059,1760419844184,-490.0,0.00027096,2]
[391207060,1760419844195,-5487.35500363,0.00027096,2]
[391207061,1760419846422,-154.25865612,0.00026033,2]
[391207062,1760419846432,-281.68314872,0.00027096,2]
[391207072,1760419906210,-153.28346837,0.00014999,2]